bitfinex/quotes_ETHUSD_20260117
["timestamp","ask_amount","ask_price","bid_price","bid_amount"]
[1768636854159,5.5787014,3289.4,3288.9,1.58974911]
[1768636854160,0.91399409,3289.4,3288.9,1.58974911]
[1768636854338,0.002,3289.4,3288.9,1.58974911]
[1768636854543,0.002,3289.4,3289.0,1.76395065]
[1768636854944,3.04207036,3289.4,3289.0,1.76395065]
[1768636855266,3.04209448,3289.4,3289.0,1.76395065]
[1768636858579,3.04209448,3289.4,3289.0,1.58974911]
[1768636858776,4.66665933,3289.4,3289.0,1.58974911]
[1768636858968,4.66665933,3289.4,3288.7,1.58974911]
[1768636860054,7.70675381,3289.4,3288.7,1.58974911]
[1768636860582,1.62456485,3289.3,3288.7,1.58974911]
[1768636861885,3.04025294,3289.2,3288.7,1.58974911]
[1768636863879,4.66481779,3289.2,3288.7,1.58974911]
[1768636864484,3.04025294,3289.2,3288.7,1.58974911]
[1768636865686,0.002,3288.9,3288.7,1.58974911]
[1768636865901,0.002,3288.9,3288.7,0.55425797]
[1768636866056,0.002,3288.9,3288.8,1.58974911]
[1768636869971,0.002,3288.9,3288.5,1.58974911]
[1768636879010,0.002,3288.9,3288.8,0.001]
[1768636881012,7.70569569,3289.2,3288.8,0.001]
[1768636883504,1.66405957,3289.1,3288.8,0.001]
[1768636883815,1.66405957,3289.1,3288.4,2.04289195]
[1768636884314,1.66405957,3289.1,3288.4,0.504]
[1768636885303,2.16605957,3289.1,3288.4,0.504]
[1768636885512,1.66405957,3289.0,3288.4,0.504]
[1768636885699,1.66405957,3288.8,3288.4,0.504]
[1768636887381,1.66405957,3288.8,3288.4,0.002]
[1768636887901,1.66405957,3288.6,3288.4,0.002]
[1768636888825,1.66405957,3288.5,3288.1,1.54170333]
[1768636889123,4.87127914,3288.6,3288.1,1.54170333]
[1768636894926,1.83046553,3288.6,3288.1,1.54170333]
[1768636895132,1.66405957,3288.6,3288.1,1.54170333]
[1768636902742,1.66405957,3288.6,3288.4,0.002]
[1768636903410,4.7048673,3288.6,3288.4,0.002]
[1768636905259,1.54951308,3288.5,3288.4,0.002]
[1768636913828,1.6800721,3288.7,3288.4,0.002]
[1768636914027,1.84807931,3288.6,3288.4,0.002]
[1768636916575,4.88891874,3288.6,3288.4,0.002]
[1768636920670,3.20884664,3288.6,3288.4,0.002]
[1768636920890,0.502,3288.8,3288.4,1.64113124]
[1768636921167,6.0806988,3289.1,3288.4,1.64113124]
[1768636921343,0.28485173,3289.0,3288.4,1.64113124]
[1768636921672,7.7607709,3289.1,3288.4,1.64113124]
[1768636921875,1.96489859,3289.0,3288.4,1.64113124]
[1768636922167,1.6800721,3289.0,3288.1,0.00281138]
[1768636922367,1.6800721,3288.8,3288.1,0.00281138]
[1768636922571,1.6800721,3288.8,3288.0,1.63913124]
[1768636922572,1.6800721,3288.6,3287.2,1.63993975]
[1768636922739,1.6800721,3288.1,3287.3,0.91212996]
[1768636922938,1.6800721,3287.9,3287.2,0.00080851]
[1768636923168,1.6800721,3287.9,3287.2,1.63993975]
[1768636923337,2.1820721,3288.0,3287.2,1.63993975]
[1768636923538,1.6800721,3287.9,3287.2,1.63993975]
[1768636924879,1.6800721,3287.8,3287.2,1.63993975]
[1768636927219,4.72171215,3287.7,3287.5,0.001]
[1768636927348,4.72171215,3287.7,3287.1,0.002]
[1768636927349,1.6800721,3287.6,3287.1,0.002]
[1768636929290,4.72189719,3287.5,3287.1,0.002]
[1768636929486,1.6800721,3287.4,3287.1,0.002]
[1768636931110,3.04182509,3287.5,3287.1,0.002]
[1768636931326,0.502,3287.8,3287.1,1.64113124]
[1768636932397,1.32850026,3287.8,3287.1,1.64113124]
[1768636934419,3.04164005,3287.7,3287.1,1.64113124]
[1768636935712,0.502,3287.9,3287.2,1.66955226]
[1768636935883,6.58491006,3287.9,3287.2,1.66955226]
[1768636936222,3.54345503,3287.9,3287.2,1.80628647]
[1768636936395,5.22352713,3287.9,3287.2,1.80628647]
[1768636936795,8.26498216,3287.9,3287.2,1.80628647]
[1768636938620,6.58491006,3287.9,3287.2,1.80628647]
[1768636938919,0.001,3287.4,3287.2,1.80628647]
[1768636939089,6.58491006,3287.9,3287.4,1.63913124]
[1768636939290,3.54345503,3287.9,3287.4,1.63913124]
[1768636940012,1.6800721,3288.3,3287.4,1.63913124]
[1768636940220,2.1820721,3288.3,3287.4,1.63913124]
[1768636942124,3.04117754,3288.2,3287.5,1.64051473]
[1768636942429,3.04117754,3288.2,3287.7,1.64051473]
[1768636943220,1.4862576,3288.8,3287.7,1.64051473]
[1768636943425,3.04062271,3288.8,3287.7,1.64051473]
[1768636944011,3.04062271,3288.8,3287.8,3.04154753]
[1768636944323,3.04062271,3288.8,3288.0,1.64051473]
[1768636945730,3.04136373,3288.9,3288.1,1.64051473]
[1768636945930,0.002,3289.2,3288.2,1.64051473]
[1768636946134,0.002,3289.2,3288.4,1.64051473]
[1768636946799,0.002,3289.2,3288.6,1.64051473]
[1768636947027,0.002,3289.2,3288.8,1.64051473]
[1768636948135,0.002,3289.2,3288.9,1.64051473]
[1768636954345,0.002,3289.2,3289.0,1.59782542]
[1768636959644,0.002,3289.4,3289.1,1.59782542]
[1768636959854,0.00080717,3289.8,3289.3,1.59782542]
[1768636961842,1.58869967,3289.8,3289.3,1.59782542]
[1768636962452,4.62847774,3289.8,3289.3,1.59782542]
[1768636963054,0.002,3289.5,3289.3,1.59782542]
[1768636966270,0.002,3289.5,3289.3,2.07762028]
[1768636970068,0.002,3289.5,3289.3,1.59782542]
[1768636972136,0.00280717,3289.8,3289.4,1.48609137]
[1768636975367,0.002,3289.5,3289.4,1.48609137]
[1768636976669,0.00080084,3289.9,3289.3,1.48609137]
[1768636976853,0.00080084,3289.9,3289.3,1.65067876]
[1768636977250,0.00080084,3289.9,3289.4,1.48609137]
[1768636979819,1.5895499,3289.9,3289.4,1.48609137]
[1768636980147,4.62921239,3289.9,3289.4,1.48609137]
[1768636981581,1.58874906,3289.8,3289.3,0.66658739]
[1768636981874,1.58874906,3289.8,3289.3,2.15267876]
[1768636984874,4.62845031,3289.8,3289.4,1.48609137]
[1768636986779,1.5895499,3289.9,3289.5,0.21526788]
[1768636987379,4.62917735,3289.9,3289.5,0.21526788]
[1768636987579,4.62917735,3289.9,3289.4,1.48609137]
[1768636987751,0.002,3289.8,3289.4,1.48609137]
[1768636988483,1.58874906,3289.7,3289.0,5.36609137]
[1768636988782,1.58874906,3289.7,3289.2,0.502]
[1768636989280,1.58874906,3289.7,3289.2,1.08880914]
[1768636989484,1.58874906,3289.7,3289.2,5.61515069]
[1768636989789,0.002,3289.8,3289.3,1.48609137]
[1768636993689,1.59074906,3289.8,3289.4,0.502]
[1768636996395,0.002,3289.8,3289.4,1.98809137]
[1768636996567,0.002,3289.8,3289.5,0.50282345]
[1768636996957,0.002,3289.8,3289.4,1.98809137]
[1768636999700,0.002,3289.8,3289.7,0.001]
[1768637015805,1.39622743,3290.1,3289.7,1.4494453]
[1768637016497,1.39622743,3290.1,3289.7,0.001]
[1768637016692,4.43569855,3290.1,3289.7,0.001]
[1768637016897,3.03947112,3290.1,3289.7,1.4494453]
[1768637017298,4.58906212,3290.1,3289.7,1.4494453]
[1768637017560,4.58906212,3290.1,3289.7,0.001]
[1768637020957,0.00281015,3290.2,3289.7,1.4494453]
[1768637021252,1.55240115,3290.2,3289.7,1.4494453]
[1768637023153,3.03942129,3290.1,3290.0,0.001]
[1768637023334,4.58901229,3290.1,3290.0,0.001]
[1768637027627,4.58901229,3290.1,3289.7,1.4494453]
[1768637031344,0.00281015,3290.2,3289.8,1.4484453]
[1768637031529,0.00281015,3290.2,3290.0,1.4484453]
[1768637031734,0.00281015,3290.2,3289.9,0.44892348]
[1768637031934,0.00281015,3290.2,3289.8,1.55537091]
[1768637032163,0.00281015,3290.2,3289.7,0.001]
[1768637032376,0.00281015,3290.2,3289.7,1.55637091]
[1768637032982,1.46528076,3290.2,3289.7,1.55637091]
[1768637034778,4.50461232,3290.2,3289.7,1.55637091]
[1768637035139,4.50461232,3290.2,3290.0,0.001]
[1768637037286,1.46528076,3290.2,3290.0,0.001]
[1768637037787,4.50462584,3290.2,3290.0,0.001]
[1768637038981,0.00281015,3290.2,3290.0,1.55637091]
[1768637039478,0.00281015,3290.2,3290.0,0.001]
[1768637040289,1.46528076,3290.2,3290.0,0.001]
[1768637041358,0.002,3290.5,3290.1,1.55537091]
[1768637041684,0.002,3290.9,3290.1,1.55537091]
[1768637041989,3.04047991,3291.2,3290.1,1.55537091]
[1768637042360,3.04047991,3291.2,3290.1,1.58576512]
[1768637042553,3.04047991,3291.2,3290.3,1.55537091]
[1768637042753,3.04047991,3291.2,3290.5,1.55537091]
[1768637044292,0.002,3291.2,3290.5,1.55537091]
[1768637047898,0.002,3290.9,3290.5,1.55537091]
[1768637048990,0.002,3291.2,3290.5,1.55537091]
[1768637049293,0.002,3291.2,3290.6,1.761108]
[1768637060110,3.04040544,3291.2,3290.8,0.001]
[1768637060309,3.04040544,3291.2,3290.8,1.55637091]
[1768637062411,3.03767941,3291.2,3290.8,1.55637091]
[1768637066887,6.07608485,3291.2,3290.6,0.20573709]
[1768637067218,6.07608485,3291.2,3289.7,3.12946504]
[1768637067219,1.57712747,3290.6,3289.8,2.0143119]
[1768637067417,1.57712747,3290.6,3289.8,0.501]
[1768637067592,1.57712747,3290.6,3290.0,1.5143119]
[1768637068702,4.61610568,3290.6,3290.0,1.5143119]
[1768637068902,3.03892346,3290.7,3290.1,1.5133119]
[1768637069100,3.03892346,3290.7,3290.3,1.5133119]
[1768637069415,4.61519197,3291.6,3290.3,1.5133119]
[1768637069630,0.502,3291.2,3290.5,1.5133119]
[1768637069987,0.502,3291.3,3290.7,1.5133119]
[1768637070194,2.07912747,3291.3,3290.7,1.5133119]
[1768637071391,6.07681088,3291.2,3290.7,1.5133119]
[1768637072106,6.07681088,3291.2,3291.0,0.001]
[1768637072306,6.07681088,3291.2,3290.7,1.5133119]
[1768637074240,3.03840544,3291.2,3290.7,1.5133119]
[1768637079340,3.03840544,3291.2,3290.8,1.48618765]
[1768637080123,3.03831312,3291.3,3290.8,1.48618765]
[1768637084137,3.03831312,3291.3,3291.0,0.001]
[1768637084716,3.04031312,3291.3,3291.0,0.001]
[1768637085136,4.58954226,3291.3,3291.0,0.001]
[1768637094247,0.002,3291.3,3291.0,0.001]
[1768637094457,3.04031701,3291.3,3291.0,0.001]
[1768637098872,0.002,3291.3,3291.0,1.42446243]
[1768637099075,0.002,3291.3,3291.2,1.42346243]
[1768637103687,1.49184348,3291.2,3290.1,3.88]
[1768637103903,1.49184348,3290.8,3290.0,0.001]
[1768637104213,1.49184348,3290.8,3290.0,3.23304258]
[1768637104379,0.002,3291.3,3290.6,1.42346243]
[1768637104552,0.002,3291.3,3290.8,1.42346243]
[1768637104755,1.49384348,3291.3,3290.8,1.42346243]
[1768637105758,4.53223968,3291.3,3290.8,1.42346243]
[1768637108993,1.49184348,3291.2,3290.8,1.42346243]
[1768637109666,0.002,3291.0,3290.8,1.42346243]
[1768637113418,0.002,3291.0,3290.6,1.42346243]
[1768637115822,0.002,3291.0,3290.7,1.42346243]
[1768637126442,1.44609849,3291.0,3290.3,1.44269956]
[1768637126650,1.44609849,3291.0,3290.6,0.501]
[1768637126945,1.44409849,3290.9,3290.6,0.501]
[1768637128852,1.44409849,3290.8,3290.6,0.501]
[1768637130123,1.44409849,3290.8,3290.2,8.36202368]
[1768637130341,1.44409849,3290.8,3290.2,5.54050082]
[1768637130648,1.44409849,3290.8,3290.2,0.501]
[1768637130947,1.44409849,3290.6,3290.2,0.501]
[1768637134055,1.44409849,3290.6,3290.5,0.001]
[1768637138149,1.51408944,3290.8,3290.5,0.001]
[1768637139550,0.002,3291.0,3290.7,1.45997476]
[1768637139853,0.002,3291.0,3290.7,1.65921123]
[1768637145970,0.002,3291.0,3290.8,1.46097476]
[1768637154669,0.00099473,3291.3,3290.8,1.536051]
[1768637154974,4.50274494,3291.3,3290.8,1.536051]
[1768637155149,4.50274494,3291.3,3290.8,2.0635689]
[1768637155770,4.50274494,3291.3,3290.8,1.536051]
[1768637155981,4.50274494,3291.3,3290.8,0.001]
[1768637155982,3.03849776,3291.1,3290.8,0.001]
[1768637156167,4.50191776,3291.1,3290.8,0.001]
[1768637156576,1.46342,3291.1,3290.8,0.001]
[1768637158670,3.03844649,3291.2,3290.8,0.001]
[1768637158873,4.50276604,3291.3,3290.8,0.001]
[1768637159070,4.50276604,3291.3,3290.8,1.91007032]
[1768637159693,3.03934604,3291.3,3290.8,1.91007032]
[1768637159990,1.46342,3291.2,3290.8,1.91007032]
[1768637161182,4.50182901,3291.2,3290.8,1.91007032]
[1768637162082,3.03840901,3291.2,3290.8,1.91007032]
[1768637162279,1.31225453,3291.7,3291.0,1.535051]
[1768637162481,1.31225453,3291.7,3291.0,0.501]
[1768637162698,1.31225453,3291.7,3291.1,1.535051]
[1768637163259,4.35023601,3291.7,3291.1,1.75974917]
[1768637165297,1.46342,3291.6,3291.1,1.75974917]
[1768637167901,4.50147236,3291.6,3291.1,1.75974917]
[1768637168400,0.00081179,3292.1,3291.2,1.535051]
[1768637168614,3.03766707,3292.0,3291.2,1.535051]
[1768637168767,1.46342,3292.0,3291.4,1.535051]
[1768637169599,1.46342,3292.0,3291.5,1.535051]
[1768637169960,4.501132,3292.0,3291.5,1.535051]
[1768637170166,1.46342,3292.0,3291.5,1.535051]
[1768637172067,4.5011032,3292.0,3291.5,1.535051]
[1768637172267,4.5011032,3292.0,3291.6,0.2037051]
[1768637173598,1.46342,3292.0,3291.6,0.2037051]
[1768637174396,4.50108843,3292.0,3291.6,0.2037051]
[1768637175268,3.03766843,3292.0,3291.6,0.2037051]
[1768637175468,1.46342,3291.9,3291.6,0.2037051]
[1768637176910,4.50124026,3291.9,3291.6,0.2037051]
[1768637177069,4.50124026,3291.9,3291.4,0.502]
[1768637177779,4.50124026,3291.9,3291.4,2.037051]
[1768637191578,1.46042994,3291.8,3291.4,2.037051]
[1768637192916,1.46042994,3291.8,3291.7,0.001]
[1768637197227,3.03780226,3291.9,3291.7,0.001]
[1768637198148,1.91025316,3291.8,3291.4,0.44881094]
[1768637198353,1.46042994,3291.7,3291.4,0.44881094]
[1768637199246,4.49841313,3291.7,3291.4,0.44881094]
[1768637199867,1.46042994,3291.7,3291.4,0.44881094]
[1768637200721,4.49839503,3291.7,3291.4,0.44881094]
[1768637203733,4.49839503,3291.7,3291.2,0.501]
[1768637203931,1.46042994,3291.6,3291.2,0.501]
[1768637205352,4.498478,3291.6,3291.2,0.501]
[1768637207954,4.498478,3291.6,3291.2,2.01508213]
[1768637208147,1.46042994,3291.6,3291.2,2.01508213]
[1768637209840,4.49846933,3291.6,3291.2,2.01508213]
[1768637210035,1.46042994,3291.5,3291.2,0.501]
[1768637210550,3.03803678,3291.6,3291.2,0.501]
[1768637211137,3.03803678,3291.6,3291.2,2.01508213]
[1768637213860,4.49840893,3291.7,3291.2,2.01508213]
[1768637214764,1.58449856,3291.9,3291.3,1.52067132]
[1768637215058,1.58449856,3291.8,3291.3,1.52067132]
[1768637217870,3.03785163,3291.8,3291.3,1.52067132]
[1768637218562,4.62235019,3291.8,3291.3,1.52067132]
[1768637220068,3.03785163,3291.8,3291.3,1.52067132]
[1768637222155,6.07570326,3291.8,3291.3,1.52067132]
[1768637222339,3.88047641,3291.8,3291.3,1.52067132]
[1768637228886,0.002,3291.5,3291.3,1.52067132]
[1768637243783,0.002,3291.5,3291.4,1.44162922]
[1768637245587,1.4261675,3291.8,3291.4,1.44162922]
[1768637245772,1.2741675,3291.8,3291.4,1.44162922]
[1768637247267,4.46188611,3292.0,3291.4,1.44162922]
[1768637247466,1.4241675,3291.9,3291.4,1.44162922]
[1768637247875,1.4241675,3291.9,3291.5,1.44162922]
[1768637248063,1.42497929,3292.1,3291.5,1.44162922]
[1768637248270,4.46259021,3292.1,3291.5,1.44162922]
[1768637248470,3.03842271,3292.1,3291.5,1.44162922]
[1768637248671,1.4241675,3292.0,3291.5,1.44162922]
[1768637248888,4.46186219,3292.0,3291.5,1.88961937]
[1768637249799,1.4241675,3292.0,3291.5,1.88961937]
[1768637251101,4.46185475,3292.0,3291.5,1.88961937]
[1768637251398,1.47636969,3291.9,3291.5,1.88961937]
[1768637253399,0.002,3291.7,3291.5,0.44799015]
[1768637254100,0.002,3291.7,3291.3,1.50565491]
[1768637256489,0.002,3291.7,3291.3,4.5439639]
[1768637257507,0.002,3291.7,3291.3,1.50565491]
[1768637266076,0.002,3291.7,3291.6,0.001]
[1768637271605,4.51605205,3292.0,3291.6,0.001]
[1768637272513,0.002,3292.0,3291.6,1.38240216]
[1768637274722,1.36338338,3292.0,3291.6,0.001]
[1768637276413,4.40106389,3292.0,3291.6,0.001]
[1768637278115,0.002,3291.7,3291.6,0.001]
[1768637299436,1.36338338,3291.7,3291.6,0.001]
[1768637299813,1.36338338,3291.7,3291.3,3.03831312]
[1768637300137,1.36338338,3291.7,3291.3,3.69609203]
[1768637301438,1.36338338,3291.7,3291.2,1.88240216]
[1768637303341,4.40134114,3291.7,3291.2,1.88240216]
[1768637305408,1.43014335,3291.6,3291.2,1.88240216]
[1768637305613,1.43014335,3291.6,3291.2,0.501]
[1768637306343,4.4682046,3291.6,3291.2,0.501]
[1768637308717,4.4682046,3291.6,3291.2,1.89410675]
[1768637314166,4.4682046,3291.6,3291.5,0.001]
[1768637314462,5.21901951,3291.6,3291.5,0.001]
[1768637321475,3.78887616,3291.6,3291.5,0.001]
[1768637325777,3.03806125,3291.6,3291.5,0.001]
[1768637328187,0.002,3291.7,3291.5,0.001]
[1768637330081,0.002,3291.7,3291.5,1.46009898]
[1768637344874,0.002,3291.7,3291.5,0.001]
[1768637382748,0.002,3291.7,3291.5,1.42323237]
[1768637390257,0.002,3291.7,3291.5,0.001]
[1768637399369,0.002,3291.7,3291.5,1.44038072]
[1768637402169,0.002,3292.0,3291.6,1.43938072]
[1768637402765,1.41864425,3292.5,3291.8,1.43938072]
[1768637403134,4.45586284,3292.5,3291.8,1.43938072]
[1768637403457,1.41783164,3292.4,3291.8,1.43938072]
[1768637404066,0.00081261,3292.5,3291.9,1.43938072]
[1768637404272,4.45586344,3292.5,3291.9,1.43938072]
[1768637404855,1.41783164,3292.4,3291.9,1.43938072]
[1768637406878,4.45514637,3292.4,3291.9,1.43938072]
[1768637407195,4.45514637,3292.4,3291.5,0.502]
[1768637407196,1.41783164,3292.3,3291.5,0.502]
[1768637407481,1.41783164,3292.2,3291.5,0.502]
[1768637407639,1.41983164,3292.2,3291.5,1.94138072]
[1768637408280,1.41983164,3292.2,3291.5,0.502]
[1768637409781,1.41783164,3292.0,3291.5,0.502]
[1768637409970,1.41783164,3292.0,3291.5,0.99995984]
[1768637410168,1.41783164,3292.0,3291.5,0.502]
[1768637411983,1.41783164,3291.8,3291.5,0.502]
[1768637414387,4.45570217,3291.8,3291.5,0.502]
[1768637414589,1.41783164,3291.7,3291.5,0.502]
[1768637415201,3.03787053,3291.8,3290.8,0.001]
[1768637415202,1.41783164,3291.6,3290.8,0.001]
[1768637415354,1.41783164,3291.6,3290.8,1.44038072]
[1768637417293,1.41783164,3291.4,3290.8,1.44038072]
[1768637420483,3.03794391,3291.7,3291.1,1.44038072]
[1768637421012,1.41783164,3291.6,3291.1,1.44038072]
[1768637422709,3.03812851,3291.5,3291.1,1.44038072]
[1768637422910,4.44119944,3291.5,3291.1,1.44038072]
[1768637430633,1.40307093,3291.7,3291.1,1.44038072]
[1768637430814,3.94909869,3291.9,3291.3,1.3685443]
[1768637431400,3.03779996,3291.9,3291.3,1.3685443]
[1768637431940,7.38545641,3292.0,3291.3,1.3685443]
[1768637432322,1.31012227,3291.9,3291.3,1.3685443]
[1768637432834,1.31012227,3291.9,3291.4,0.001]
[1768637437342,3.03785163,3291.8,3291.4,0.001]
[1768637438742,4.3479739,3291.8,3291.4,0.001]
[1768637438944,1.31012227,3291.7,3291.4,0.001]
[1768637439439,1.31012227,3291.6,3291.4,0.001]
[1768637441523,1.31012227,3291.5,3291.4,0.001]
[1768637442860,1.31012227,3291.5,3291.1,0.001]
[1768637444422,1.31012227,3291.4,3291.1,0.001]
[1768637446557,4.34837599,3291.4,3291.1,0.001]
[1768637451448,3.03815976,3291.5,3291.1,0.001]
[1768637453826,3.77699333,3291.5,3291.1,0.001]
[1768637454026,5.09316592,3291.5,3291.1,0.001]
[1768637457564,5.09316592,3291.5,3291.4,0.001]
[1768637460865,3.77699333,3291.5,3291.4,0.001]
[1768637463181,0.73883357,3291.5,3291.4,0.001]
[1768637463342,1.31817259,3291.6,3291.4,0.001]
[1768637463671,4.35623637,3291.6,3291.4,0.001]
[1768637464171,3.04006378,3291.6,3291.4,0.001]
[1768637464486,3.04006378,3291.6,3291.4,1.43386148]
[1768637465773,0.002,3291.6,3291.4,1.43386148]
[1768637467467,0.002,3291.6,3291.4,0.001]
[1768637471464,0.002,3291.6,3291.4,1.43386148]
[1768637473278,0.002,3291.6,3291.4,0.001]
[1768637485857,0.002,3291.9,3291.4,1.36099441]
[1768637486176,0.28467864,3291.8,3291.4,1.36099441]
[1768637486386,3.03981114,3291.9,3291.4,1.36099441]
[1768637486613,0.28466512,3291.8,3291.4,1.36099441]
[1768637486810,3.03981114,3291.9,3291.4,1.36099441]
[1768637486992,0.28466516,3291.8,3291.4,1.36099441]
[1768637487174,3.03981114,3291.9,3291.4,1.36099441]
[1768637487377,0.002,3291.9,3291.4,1.36099441]
[1768637487613,0.002,3291.9,3291.6,1.35999441]
[1768637488290,3.03950821,3292.2,3291.6,1.35999441]
[1768637489395,0.002,3292.2,3291.7,1.35999441]
[1768637489892,0.002,3292.2,3291.9,1.35999441]
[1768637494813,0.002,3292.2,3291.9,1.79978789]
[1768637496215,0.002,3292.2,3292.0,1.42230059]
[1768637508129,0.002,3292.2,3291.8,1.92330059]
[1768637509019,1.39650356,3292.2,3291.8,1.92330059]
[1768637509215,1.39650356,3292.2,3291.8,0.501]
[1768637511536,3.0375748,3292.1,3291.8,0.501]
[1768637512032,1.30613252,3292.0,3291.8,0.501]
[1768637513234,1.30613252,3292.0,3291.4,1.92323735]
[1768637513526,1.30613252,3292.0,3291.5,0.49614941]
[1768637513937,4.34389186,3291.9,3291.5,0.49614941]
[1768637514136,4.34389186,3291.9,3291.4,1.92323735]
[1768637514637,1.30613252,3291.9,3291.4,1.92323735]
[1768637516839,1.30613252,3291.8,3291.4,0.502]
[1768637518744,1.30613252,3291.8,3291.7,0.001]
[1768637519243,0.002,3291.9,3291.7,0.001]
[1768637519244,0.002,3291.9,3291.7,1.42223735]
[1768637520309,0.002,3291.9,3291.7,0.001]
[1768637523843,0.002,3291.9,3291.7,1.42223735]
[1768637524012,0.002,3291.9,3291.7,0.001]
[1768637528917,1.30813252,3291.9,3291.7,0.001]
[1768637537949,0.002,3291.9,3291.7,0.001]
[1768637548662,0.002,3291.9,3291.7,1.33248135]
[1768637550238,0.002,3291.9,3291.7,1.76954126]
[1768637553329,0.002,3291.9,3291.7,1.33248135]
[1768637554236,4.28534437,3292.1,3291.7,1.33248135]
[1768637554237,0.002,3292.2,3291.8,1.27367842]
[1768637558576,0.002,3292.2,3291.8,1.77467842]
[1768637558754,0.002,3292.2,3291.9,1.27367842]
[1768637563867,0.002,3292.2,3292.0,1.27367842]
[1768637564072,0.002,3292.2,3292.1,1.704819]
[1768637564269,0.002,3292.2,3292.1,1.27367842]
[1768637571780,0.002,3292.2,3291.9,1.22630852]
[1768637576762,1.23140221,3292.2,3291.7,0.001]
[1768637577794,1.23140221,3292.2,3291.7,1.22730852]
[1768637577980,1.23140221,3292.2,3291.7,1.40013937]
[1768637578592,0.002,3291.9,3291.7,1.40013937]
[1768637602519,0.002,3292.2,3291.8,1.32428929]
[1768637603238,0.002,3292.2,3291.7,3.21176875]
[1768637603239,1.21897281,3292.1,3291.7,0.17383085]
[1768637603419,1.21897281,3292.1,3291.7,1.49812014]
[1768637608646,4.25655206,3292.1,3291.7,1.49812014]
[1768637608847,1.21897281,3292.0,3291.7,0.001]
[1768637609645,4.25848155,3292.2,3291.7,0.001]
[1768637611050,1.21897281,3292.1,3291.7,0.001]
[1768637613162,0.002,3291.9,3291.7,0.001]
[1768637620533,0.002,3291.9,3291.7,1.20204653]
[1768637624536,0.002,3291.9,3291.7,0.001]
[1768637645283,1.23922299,3291.9,3291.7,0.001]
[1768637646495,1.23679296,3291.9,3291.7,0.001]
[1768637646986,4.27482551,3292.1,3291.7,0.001]
[1768637647186,1.23722299,3292.1,3291.7,0.001]
[1768637651386,4.27482835,3292.1,3291.7,0.001]
[1768637651589,1.23722299,3292.0,3291.7,0.001]
[1768637652891,1.23722299,3292.0,3291.4,3.03918385]
[1768637652892,1.23722299,3291.9,3291.4,0.001]
[1768637653385,4.27507462,3291.8,3291.4,0.001]
[1768637653589,1.23722299,3291.7,3291.4,0.001]
[1768637654196,2.14844145,3291.6,3291.4,0.001]
[1768637654559,1.23722299,3291.5,3291.4,0.001]
[1768637660307,0.91121846,3291.6,3291.4,0.001]
[1768637660513,2.14844145,3291.6,3291.4,0.001]
[1768637661599,2.14844145,3291.6,3290.8,0.001]
[1768637661600,1.23722299,3291.4,3290.8,0.001]
[1768637662515,1.20226191,3291.3,3290.8,0.001]
[1768637663102,1.20226191,3291.2,3290.8,0.001]
[1768637665516,0.9112932,3291.3,3290.8,1.29444155]
[1768637665721,2.11355511,3291.3,3290.8,1.29444155]
[1768637666491,0.9112932,3291.3,3290.8,1.29444155]
[1768637666683,1.20226191,3291.2,3290.8,1.29444155]
[1768637667500,1.20226191,3291.2,3290.8,0.001]
[1768637671553,1.20735498,3291.0,3290.8,0.001]
[1768637679357,4.24780476,3291.2,3290.8,0.001]
[1768637679527,1.20735498,3291.1,3290.8,0.001]
[1768637679963,3.0385013,3291.1,3290.8,0.001]
[1768637680250,1.20735498,3291.0,3290.8,0.001]
[1768637684961,3.04043526,3291.2,3290.8,0.001]
[1768637685127,4.24779024,3291.2,3290.8,0.001]
[1768637685454,4.24779024,3291.2,3291.1,0.001]
[1768637685638,5.06752289,3291.2,3291.1,0.001]
[1768637689167,2.02908763,3291.2,3291.1,0.001]
[1768637696580,5.06749307,3291.2,3291.1,0.001]
[1768637697184,0.82173265,3291.2,3291.1,0.001]
[1768637697876,2.10203616,3291.2,3291.1,0.001]
[1768637700674,0.82173265,3291.2,3291.1,0.001]
[1768637701844,0.002,3291.2,3291.1,0.001]
[1768637703905,0.002,3291.2,3291.1,1.17392624]
[1768637730185,0.002,3291.2,3291.1,0.001]
[1768637745527,0.002,3291.5,3291.2,1.27794516]
[1768637756638,0.002,3291.5,3291.3,1.2784237]
[1768637756845,3.03766707,3292.0,3291.4,1.2784237]
[1768637757379,4.24044307,3292.0,3291.4,1.2784237]
[1768637768273,0.002,3291.7,3291.4,1.2784237]
[1768637768463,0.002,3291.7,3291.5,0.17794237]
[1768637768643,0.002,3291.7,3291.4,1.2784237]
[1768637774273,0.002,3291.7,3291.3,0.501]
[1768637774274,1.204776,3291.7,3291.3,0.501]
[1768637781593,4.24273431,3291.7,3291.3,0.501]
[1768637784403,1.204776,3291.7,3291.3,0.501]
[1768637785372,1.204776,3291.7,3291.3,1.70295797]
[1768637787223,4.24273016,3291.7,3291.3,1.70295797]
[1768637793102,4.24273016,3291.7,3291.3,0.501]
[1768637806834,4.24273016,3291.7,3291.3,1.66811096]
[1768637807236,1.22310459,3291.7,3291.3,0.501]
[1768637807442,1.22310459,3291.7,3291.4,0.2099854]
[1768637809929,0.002,3291.7,3291.4,0.2099854]
[1768637815047,0.002,3291.7,3291.4,1.39791425]
[1768637821471,0.002,3291.7,3291.4,1.18792885]
[1768637822588,0.002,3291.7,3291.5,1.18792885]
[1768637822751,0.002,3292.0,3291.5,1.18792885]
[1768637822959,0.002,3292.0,3291.7,1.18792885]
[1768637823178,0.002,3292.0,3291.9,1.18792885]
[1768637823480,0.002,3292.2,3291.9,1.35682174]
[1768637823699,0.002,3292.2,3291.9,1.18792885]
[1768637827796,0.00050777,3292.7,3291.8,0.501]
[1768637827997,3.0367073,3293.1,3292.2,1.18792885]
[1768637828296,0.30387073,3293.0,3292.3,0.501]
[1768637828657,4.73320625,3293.0,3291.3,1.18792885]
[1768637828859,0.28403438,3292.9,3291.7,4.22580983]
[1768637829092,4.73320625,3293.0,3291.7,1.18792885]
[1768637829279,1.66837224,3292.9,3291.7,1.18792885]
[1768637829591,1.38433282,3292.9,3291.7,1.18792885]
[1768637829897,6.0738581,3292.8,3291.8,1.18792885]
[1768637830199,1.21575115,3292.7,3291.9,0.501]